[Event "ESP-ch U2000 2024"]
[Site "Albacete"]
[Date "2024.08.30"]
[Round "6.1"]
[White "Perez Travieso, Saul"]
[Black "Tarraga Navarro, Pablo"]
[Result "1/2-1/2"]
[ECO "A14"]
[WhiteElo "1933"]
[BlackElo "1968"]
[Annotator "RC"]
[PlyCount "105"]
[EventDate "2024.08.27"]
[EventType "swiss"]
[EventCountry "ESP"]
[SourceTitle "playchess.com"]
[Source "ChessBase"]
[SourceQuality "1"]
[TimeControl "5400+30"]

1. Nf3 {[%emt 0:00:03]} Nf6 {[%emt 0:00:07]} 2. c4 {[%emt 0:00:20]} e6 {[%emt 0:00:07]} 3. g3 {[%emt 0:00:12]} d5 {[%emt 0:00:06]} 4. Bg2 {[%emt 0:00:54]} Be7 {[%emt 0:00:05]} 5. O-O {[%emt 0:00:31]} O-O {[%emt 0:00:05]} 6. b3 {[%emt 0:00:37]} b6 {[%emt 0:07:05]} 7. cxd5 {[%emt 0:02:45]} exd5 {[%emt 0:00:10]} 8. Bb2 {[%emt 0:00:50]} Bb7 {[%emt 0:00:40]} 9. d3 {[%emt 0:00:10]} c5 {[%emt 0:01:00]} 10. Nbd2 {[%emt 0:01:29]} Nc6 {[%emt 0:01:21]} 11. Ne5 {[%emt 0:02:34]} Nxe5 {[%emt 0:03:25]} 12. Bxe5 {[%emt 0:00:47]} Qd7 {[%emt 0:05:28]} 13. Rb1 {[%emt 0:14:09]} Rfe8 {[%emt 0:06:59]} 14. h3 {[%emt 0:07:02]} Rac8 {[%emt 0:03:44]} 15. Re1 {[%emt 0:02:16]} h6 {[%emt 0:01:50]} 16. Nf3 {[%emt 0:08:03]} Rcd8 {[%emt 0:05:41]} 17. Qc2 {[%emt 0:03:47]} Qc8 {[%emt 0:03:41]} 18. Qb2 {[%emt 0:02:22]} d4 {[%emt 0:02:14]} 19. Bxf6 {[%emt 0:00:58]} Bxf6 {[%emt 0:00:09]} 20. Nd2 {[%emt 0:02:17]} Bxg2 {[%emt 0:00:31]} 21. Kxg2 {[%emt 0:00:03]} Qb7+ {[%emt 0:00:20]} 22. Kg1 {[%emt 0:00:36]} Qd7 {[%emt 0:01:06]} 23. Kg2 {[%emt 0:05:34]} Qd5+ {[%emt 0:00:21]} 24. f3 {[%emt 0:05:15]} Be5 {[%emt 0:02:37]} 25. Ne4 {[%emt 0:03:06]} f5 {[%emt 0:01:05]} 26. Nf2 {[%emt 0:00:22]} Rd6 {[%emt 0:11:25]} 27. g4 {[%emt 0:04:10]} Rg6 {[%emt 0:04:42]} 28. b4 {[%emt 0:00:46]} Qd8 {[%emt 0:00:27]} 29. Rg1 {[%emt 0:11:36]} Qh4 {[%emt 0:01:01]} 30. Qb3+ {[%emt 0:08:55]} Kf8 {[%emt 0:07:14]} 31. Kf1 {[%emt 0:03:41]} Bf4 {[%emt 0:10:19]} 32. Qd5 {[%emt 0:01:55]} Be3 {[%emt 0:00:43]} 33. Rg2 {[%emt 0:00:12]} Bxf2 {[%emt 0:02:03]} 34. Rxf2 {[%emt 0:00:04]} Qxh3+ {[%emt 0:00:08]} 35. Ke1 {[%emt 0:00:04]} Rf6 {[%emt 0:05:06]} 36. gxf5 {[%emt 0:02:05]} Qxf5 {[%emt 0:00:58]} 37. Qxf5 {[%emt 0:01:34]} Rxf5 {[%emt 0:00:01]} 38. Rg2 {[%emt 0:00:31]} Re7 {[%emt 0:00:27]} 39. Kd2 {[%emt 0:00:17]} g5 {[%emt 0:00:13]} 40. bxc5 {[%emt 0:01:21]} bxc5 {[%emt 0:00:07]} 41. Rb8+ {[%emt 0:00:58]} Kg7 {[%emt 0:00:15]} 42. Rh2 {[%emt 0:01:25]} Rf6 {[%emt 0:04:23]} 43. Rb5 {[%emt 0:00:40]} Rc6 {[%emt 0:00:38]} 44. Kc2 {[%emt 0:02:35]} Kg6 {[%emt 0:01:07]} 45. a4 {[%emt 0:00:32]} h5 {[%emt 0:01:55]} 46. Kb3 {[%emt 0:00:46]} g4 {[%emt 0:05:45]} 47. fxg4 {[%emt 0:01:04]} hxg4 {[%emt 0:00:01]} 48. Kc4 {[%emt 0:00:08]} Re5 {[%emt 0:00:22]} 49. Rb8 {[%emt 0:00:31]} Kg5 {[%emt 0:00:12]} 50. Rg2 {[%emt 0:00:42]} Rg6 {[%emt 0:01:11]} 51. a5 {[%emt 0:00:26]} Rg7 {[%emt 0:02:48]} 52. a6 {[%emt 0:00:17]} Rg6 {[%emt 0:00:24]} 53. Kb5 {[%emt 0:00:43]} 1/2-1/2

[Event "ESP-ch U2000 2024"]
[Site "Albacete"]
[Date "2024.08.30"]
[Round "6.2"]
[White "Sierra Pena, Mario"]
[Black "Machin Arbelo, Pedro Alexis"]
[Result "1/2-1/2"]
[ECO "D05"]
[WhiteElo "1971"]
[BlackElo "1916"]
[Annotator "RC"]
[PlyCount "89"]
[EventDate "2024.08.27"]
[EventType "swiss"]
[EventCountry "ESP"]
[SourceTitle "playchess.com"]
[Source "ChessBase"]
[SourceQuality "1"]
[TimeControl "5400+30"]

1. d4 {[%emt 0:00:02]} Nf6 {[%emt 0:03:34]} 2. Nf3 {[%emt 0:00:05]} e6 {[%emt 0:00:04]} 3. e3 {[%emt 0:00:09]} d5 {[%emt 0:00:54]} 4. Bd3 {[%emt 0:00:06]} c5 {[%emt 0:02:20]} 5. b3 {[%emt 0:00:02]} Nc6 {[%emt 0:00:33]} 6. O-O {[%emt 0:00:09]} cxd4 {[%emt 0:02:24]} 7. exd4 {[%emt 0:01:55]} h6 {[%emt 0:02:56]} 8. a3 {[%emt 0:01:03]} Bd6 {[%emt 0:05:01]} 9. Bb2 {[%emt 0:01:12]} Qc7 {[%emt 0:02:14]} 10. Re1 {[%emt 0:01:06]} b6 {[%emt 0:02:26]} 11. Ne5 {[%emt 0:02:50]} Bxe5 {[%emt 0:05:11]} 12. dxe5 {[%emt 0:00:09]} Nd7 {[%emt 0:00:05]} 13. f4 {[%emt 0:02:19]} g5 {[%emt 0:24:06]} 14. f5 {[%emt 0:08:20]} Nc5 {[%emt 0:09:43]} 15. Nc3 {[%emt 0:10:45]} a6 {[%emt 0:03:08]} 16. b4 {[%emt 0:01:16]} Nxd3 {[%emt 0:00:43]} 17. cxd3 {[%emt 0:00:19]} Ne7 {[%emt 0:02:34]} 18. Rc1 {[%emt 0:08:33]} Qa7 {[%emt 0:01:43]} 19. f6 {[%emt 0:02:53]} Ng6 {[%emt 0:00:01]} 20. Na4 {[%emt 0:01:28]} Bd7 {[%emt 0:00:56]} 21. Bd4 {[%emt 0:00:45]} Rb8 {[%emt 0:04:25]} 22. Rc3 {[%emt 0:06:38]} Bb5 {[%emt 0:03:14]} 23. Qc2 {[%emt 0:06:56]} O-O {[%emt 0:15:16]} 24. Rc1 {[%emt 0:00:36]} Rb7 {[%emt 0:06:28]} 25. Nb2 {[%emt 0:07:12]} Qb8 {[%emt 0:00:27]} 26. a4 {[%emt 0:00:28]} Bd7 {[%emt 0:00:11]} 27. Qe2 {[%emt 0:05:05]} Kh7 {[%emt 0:00:22]} 28. g3 {[%emt 0:00:47]} Rc8 {[%emt 0:00:56]} 29. Rxc8 {[%emt 0:05:47]} Bxc8 {[%emt 0:00:01]} 30. Rc3 {[%emt 0:00:02]} Rc7 {[%emt 0:00:17]} 31. Qc2 {[%emt 0:00:36]} Rxc3 {[%emt 0:00:38]} 32. Qxc3 {[%emt 0:00:04]} Bd7 {[%emt 0:00:29]} 33. Kf2 {[%emt 0:02:48]} Qe8 {[%emt 0:00:22]} 34. Bxb6 {[%emt 0:02:24]} Bxa4 {[%emt 0:00:07]} 35. Nxa4 {[%emt 0:01:03]} Qxa4 {[%emt 0:00:02]} 36. Qc7 {[%emt 0:00:01]} Kg8 {[%emt 0:03:28]} 37. Qb8+ {[%emt 0:18:20]} Kh7 {[%emt 0:00:24]} 38. Qc7 {[%emt 0:00:09]} Kg8 {[%emt 0:00:01]} 39. Qb8+ {[%emt 0:02:16]} Kh7 {[%emt 0:00:01]} 40. Bd4 {[%emt 0:00:47]} Qc2+ {[%emt 0:01:02]} 41. Ke3 {[%emt 0:00:10]} Qc1+ {[%emt 0:00:24]} 42. Ke2 {[%emt 0:00:22]} Qc2+ {[%emt 0:00:02]} 43. Ke3 {[%emt 0:00:13]} Qc1+ {[%emt 0:00:35]} 44. Ke2 {[%emt 0:00:07]} Qc2+ {[%emt 0:00:08]} 45. Ke3 {[%emt 0:00:05]} 1/2-1/2

[Event "ESP-ch U2000 2024"]
[Site "Albacete"]
[Date "2024.08.30"]
[Round "6.3"]
[White "Sala Esquiva, Miguel"]
[Black "Martino Girones, Gonzalo"]
[Result "1-0"]
[ECO "A06"]
[WhiteElo "1967"]
[BlackElo "1903"]
[Annotator "RC"]
[PlyCount "103"]
[EventDate "2024.08.27"]
[EventType "swiss"]
[EventCountry "ESP"]
[SourceTitle "playchess.com"]
[Source "ChessBase"]
[SourceQuality "1"]
[TimeControl "5400+30"]

1. Nf3 {[%emt 0:00:07]} d5 {[%emt 0:00:07]} 2. g3 {[%emt 0:00:09]} Nf6 {[%emt 0:00:06]} 3. Bg2 {[%emt 0:00:12]} Bf5 {[%emt 0:00:27]} 4. d3 {[%emt 0:01:11]} h6 {[%emt 0:01:45]} 5. O-O {[%emt 0:01:25]} e6 {[%emt 0:00:04]} 6. Nbd2 {[%emt 0:01:20]} Be7 {[%emt 0:00:20]} 7. b3 {[%emt 0:03:58]} a5 {[%emt 0:00:26]} 8. a4 {[%emt 0:01:55]} O-O {[%emt 0:03:03]} 9. Bb2 {[%emt 0:02:55]} Na6 {[%emt 0:01:21]} 10. h3 {[%emt 0:08:09]} Nb4 {[%emt 0:01:59]} 11. g4 {[%emt 0:04:15]} Bh7 {[%emt 0:04:34]} 12. Kh1 {[%emt 0:08:43]} Bc5 {[%emt 0:08:01]} 13. Ne5 {[%emt 0:13:49]} c6 {[%emt 0:08:49]} 14. Ndf3 {[%emt 0:07:10]} Ne8 {[%emt 0:04:46]} 15. c3 {[%emt 0:04:38]} Na6 {[%emt 0:01:15]} 16. d4 {[%emt 0:00:27]} Be7 {[%emt 0:02:34]} 17. Ba3 {[%emt 0:02:02]} Nd6 {[%emt 0:02:45]} 18. Nd2 {[%emt 0:02:52]} Nc7 {[%emt 0:09:00]} 19. f4 {[%emt 0:02:10]} Nce8 {[%emt 0:01:36]} 20. e3 {[%emt 0:07:07]} f6 {[%emt 0:09:35]} 21. Nef3 {[%emt 0:00:40]} g5 {[%emt 0:05:09]} 22. Qe2 {[%emt 0:07:01]} Kg7 {[%emt 0:06:21]} 23. c4 {[%emt 0:01:04]} f5 {[%emt 0:05:56]} 24. c5 {[%emt 0:03:34]} Ne4 {[%emt 0:02:21]} 25. Nxe4 {[%emt 0:00:29]} fxe4 {[%emt 0:00:46]} 26. Ne5 {[%emt 0:00:57]} Bf6 {[%emt 0:05:44]} 27. Bb2 {[%emt 0:02:59]} Bg6 {[%emt 0:05:32]} 28. Bc3 {[%emt 0:06:56]} Ra7 {[%emt 0:07:08]} 29. Rf2 {[%emt 0:01:49]} Bxe5 {[%emt 0:00:55]} 30. fxe5 {[%emt 0:00:21]} Rxf2 {[%emt 0:00:11]} 31. Qxf2 {[%emt 0:00:02]} b6 {[%emt 0:00:13]} 32. b4 {[%emt 0:01:47]} bxc5 {[%emt 0:01:05]} 33. bxc5 {[%emt 0:00:19]} Nc7 {[%emt 0:02:26]} 34. Qd2 {[%emt 0:00:51]} Na8 {[%emt 0:00:01]} 35. Kg1 {[%emt 0:01:12]} Be8 {[%emt 0:00:14]} 36. Rf1 {[%emt 0:00:33]} Bd7 {[%emt 0:01:08]} 37. Rf6 {[%emt 0:00:55]} Bc8 {[%emt 0:00:35]} 38. h4 {[%emt 0:01:11]} gxh4 {[%emt 0:00:37]} 39. Qf2 {[%emt 0:00:28]} Qh8 {[%emt 0:00:30]} 40. Qxh4 {[%emt 0:00:41]} Rf7 {[%emt 0:00:14]} 41. g5 {[%emt 0:00:41]} Rxf6 {[%emt 0:00:38]} 42. exf6+ {[%emt 0:01:01]} Kg6 {[%emt 0:00:35]} 43. Bxa5 {[%emt 0:00:20]} Qh7 {[%emt 0:00:10]} 44. Qxh6+ {[%emt 0:01:11]} Qxh6 {[%emt 0:00:01]} 45. gxh6 {[%emt 0:00:01]} Kxf6 {[%emt 0:00:16]} 46. Kf2 {[%emt 0:00:41]} Kg6 {[%emt 0:00:04]} 47. Kg3 {[%emt 0:00:08]} Kxh6 {[%emt 0:00:10]} 48. Kf4 {[%emt 0:00:11]} Kg6 {[%emt 0:00:26]} 49. Ke5 {[%emt 0:01:16]} Kf7 {[%emt 0:00:05]} 50. Kd6 {[%emt 0:00:27]} Bb7 {[%emt 0:00:05]} 51. Bh3 {[%emt 0:00:09]} Kf6 {[%emt 0:00:22]} 52. Bxe6 {[%emt 0:00:40]} 1-0

[Event "ESP-ch U2000 2024"]
[Site "Albacete"]
[Date "2024.08.30"]
[Round "6.4"]
[White "Hurtado Oldridge, Felipe"]
[Black "Sanjuan Garcia, Miguel"]
[Result "1/2-1/2"]
[ECO "E61"]
[WhiteElo "1873"]
[BlackElo "1963"]
[Annotator "RC"]
[PlyCount "78"]
[EventDate "2024.08.27"]
[EventType "swiss"]
[EventCountry "ESP"]
[SourceTitle "playchess.com"]
[Source "ChessBase"]
[SourceQuality "1"]
[TimeControl "5400+30"]

1. d4 {[%emt 0:04:07]} g6 {[%emt 0:00:04]} 2. c4 {[%emt 0:00:07]} Bg7 {[%emt 0:00:34]} 3. Nf3 {[%emt 0:00:07]} d6 {[%emt 0:01:09]} 4. Nc3 {[%emt 0:00:05]} Nf6 {[%emt 0:01:08]} 5. Bg5 {[%emt 0:00:10]} Nbd7 {[%emt 0:00:10]} 6. e3 {[%emt 0:00:01]} O-O {[%emt 0:00:07]} 7. Be2 {[%emt 0:00:02]} c6 {[%emt 0:08:11]} 8. h3 {[%emt 0:00:21]} Qe8 {[%emt 0:01:22]} 9. Qc2 {[%emt 0:00:21]} e5 {[%emt 0:01:05]} 10. O-O {[%emt 0:00:06]} h6 {[%emt 0:08:02]} 11. Bh4 {[%emt 0:00:12]} g5 {[%emt 0:03:18]} 12. Bg3 {[%emt 0:00:00]} Nh5 {[%emt 0:00:16]} 13. Bh2 {[%emt 0:00:01]} f5 {[%emt 0:00:31]} 14. Rae1 {[%emt 0:08:30]} Qf7 {[%emt 0:13:25]} 15. Qd1 {[%emt 0:11:28]} f4 {[%emt 0:05:33]} 16. dxe5 {[%emt 0:20:51]} dxe5 {[%emt 0:00:30]} 17. Ne4 {[%emt 0:00:30]} Nhf6 {[%emt 0:00:30]} 18. Nd6 {[%emt 0:00:30]} Qe7 {[%emt 0:00:30]} 19. exf4 {[%emt 0:00:30]} exf4 {[%emt 0:00:30]} 20. Bd3 Qd8 21. Nf5 Rf7 {[%emt 0:08:42]} 22. Nd6 {[%emt 0:09:01]} Rf8 {[%emt 0:00:26]} 23. Nf5 {[%emt 0:02:18]} Rf7 {[%emt 0:00:47]} 24. b4 {[%emt 0:02:01]} Bf8 {[%emt 0:02:57]} 25. c5 {[%emt 0:00:38]} Nd5 {[%emt 0:01:16]} 26. Qb1 {[%emt 0:02:28]} Qf6 {[%emt 0:05:23]} 27. Re8 {[%emt 0:02:02]} Nc7 {[%emt 0:00:09]} 28. Rfe1 {[%emt 0:02:26]} Nxc5 {[%emt 0:07:34]} 29. Nxh6+ {[%emt 0:21:14]} Qxh6 {[%emt 0:00:18]} 30. bxc5 {[%emt 0:00:07]} Nxe8 {[%emt 0:08:28]} 31. Rxe8 {[%emt 0:00:03]} Re7 {[%emt 0:00:25]} 32. Bc4+ {[%emt 0:01:13]} Kg7 {[%emt 0:00:27]} 33. Qb2+ {[%emt 0:00:16]} Kh7 {[%emt 0:00:28]} 34. Qc2+ {[%emt 0:03:14]} Kg7 {[%emt 0:06:11]} 35. Qc3+ {[%emt 0:00:23]} Kh7 {[%emt 0:00:50]} 36. Qd3+ {[%emt 0:08:56]} Kg7 {[%emt 0:00:41]} 37. Qd4+ {[%emt 0:01:00]} Kh7 {[%emt 0:01:53]} 38. Qd3+ {[%emt 0:00:01]} Kg7 39. Qd4+ {[%emt 0:00:00]} Kh7 {[%emt 0:00:40]} 1/2-1/2

[Event "ESP-ch U2000 2024"]
[Site "Albacete"]
[Date "2024.08.30"]
[Round "6.5"]
[White "Garcia-Ballesteros Banos, Juan A"]
[Black "Salazar Romero, Abel"]
[Result "0-1"]
[ECO "B13"]
[WhiteElo "1857"]
[BlackElo "1937"]
[Annotator "RC"]
[PlyCount "194"]
[EventDate "2024.08.27"]
[EventType "swiss"]
[EventCountry "ESP"]
[SourceTitle "playchess.com"]
[Source "ChessBase"]
[SourceQuality "1"]
[TimeControl "5400+30"]

1. e4 {[%emt 0:00:05]} c6 {[%emt 0:00:14]} 2. d4 {[%emt 0:00:07]} d5 {[%emt 0:00:04]} 3. exd5 {[%emt 0:00:05]} cxd5 {[%emt 0:00:04]} 4. Bd3 {[%emt 0:00:06]} Nc6 {[%emt 0:00:10]} 5. c3 {[%emt 0:00:05]} Nf6 {[%emt 0:00:12]} 6. h3 {[%emt 0:00:05]} g6 {[%emt 0:00:27]} 7. Nf3 {[%emt 0:00:07]} Qc7 {[%emt 0:00:48]} 8. O-O {[%emt 0:00:18]} Bg7 {[%emt 0:00:04]} 9. Re1 {[%emt 0:00:16]} O-O {[%emt 0:00:19]} 10. Qc2 {[%emt 0:02:53]} Nh5 {[%emt 0:00:51]} 11. Re2 {[%emt 0:02:39]} Nf4 {[%emt 0:02:55]} 12. Bxf4 {[%emt 0:00:28]} Qxf4 {[%emt 0:00:05]} 13. Qd2 {[%emt 0:00:45]} Qf6 {[%emt 0:14:25]} 14. Qg5 {[%emt 0:01:34]} Qxg5 {[%emt 0:03:08]} 15. Nxg5 {[%emt 0:00:07]} e5 {[%emt 0:00:51]} 16. dxe5 {[%emt 0:06:47]} Nxe5 {[%emt 0:00:08]} 17. Re3 {[%emt 0:00:29]} Nxd3 {[%emt 0:19:10]} 18. Rxd3 {[%emt 0:00:11]} Re8 {[%emt 0:00:30]} 19. Nf3 {[%emt 0:04:13]} Be6 {[%emt 0:00:18]} 20. Nbd2 {[%emt 0:06:20]} Rac8 {[%emt 0:01:19]} 21. Nb3 {[%emt 0:01:13]} Rc6 {[%emt 0:05:03]} 22. Re1 {[%emt 0:09:12]} Kf8 {[%emt 0:03:52]} 23. Nbd4 {[%emt 0:10:53]} Rb6 {[%emt 0:00:18]} 24. Rd2 {[%emt 0:01:43]} Bxd4 {[%emt 0:09:50]} 25. Nxd4 {[%emt 0:00:43]} Bd7 {[%emt 0:00:25]} 26. Rxe8+ {[%emt 0:14:47]} Kxe8 {[%emt 0:00:07]} 27. Kf1 {[%emt 0:00:29]} f6 {[%emt 0:05:52]} 28. f4 {[%emt 0:07:24]} Ke7 {[%emt 0:00:16]} 29. Ke2 {[%emt 0:01:24]} h5 {[%emt 0:02:21]} 30. Kf3 {[%emt 0:03:59]} Kf7 {[%emt 0:00:56]} 31. g4 {[%emt 0:02:52]} hxg4+ {[%emt 0:00:26]} 32. hxg4 {[%emt 0:00:06]} Ra6 {[%emt 0:00:22]} 33. a3 {[%emt 0:00:54]} Rb6 {[%emt 0:02:19]} 34. b3 {[%emt 0:02:33]} a5 {[%emt 0:00:11]} 35. a4 {[%emt 0:01:08]} Rd6 {[%emt 0:03:32]} 36. Rh2 {[%emt 0:03:47]} Kg7 {[%emt 0:00:46]} 37. g5 {[%emt 0:00:45]} Ra6 {[%emt 0:01:29]} 38. Ke3 {[%emt 0:03:28]} Ra8 {[%emt 0:02:05]} 39. gxf6+ {[%emt 0:01:04]} Kxf6 {[%emt 0:00:23]} 40. Rh7 {[%emt 0:00:17]} Re8+ {[%emt 0:04:33]} 41. Kf3 {[%emt 0:05:06]} Re7 {[%emt 0:00:05]} 42. Rh1 {[%emt 0:00:14]} Re8 {[%emt 0:00:48]} 43. Rg1 {[%emt 0:03:36]} Rc8 {[%emt 0:00:21]} 44. Rc1 {[%emt 0:00:07]} Rh8 {[%emt 0:00:41]} 45. Ne2 {[%emt 0:02:29]} Rh3+ {[%emt 0:01:13]} 46. Ng3 {[%emt 0:00:19]} Rh2 {[%emt 0:00:01]} 47. Rb1 {[%emt 0:02:08]} Rc2 {[%emt 0:02:48]} 48. Ne2 {[%emt 0:00:02]} Bf5 {[%emt 0:00:20]} 49. Rc1 {[%emt 0:02:20]} Bg4+ {[%emt 0:09:31]} 50. Kxg4 {[%emt 0:00:13]} Rxe2 {[%emt 0:00:02]} 51. c4 {[%emt 0:01:20]} d4 {[%emt 0:01:28]} 52. Rd1 {[%emt 0:00:25]} Re4 {[%emt 0:00:04]} 53. Rd3 {[%emt 0:01:36]} g5 {[%emt 0:00:12]} 54. Rf3 {[%emt 0:00:21]} b6 {[%emt 0:00:55]} 55. Kg3 {[%emt 0:00:20]} gxf4+ {[%emt 0:00:13]} 56. Rxf4+ {[%emt 0:00:29]} Ke5 {[%emt 0:00:04]} 57. Rf8 {[%emt 0:00:47]} Re3+ {[%emt 0:01:19]} 58. Kf2 {[%emt 0:00:20]} Rxb3 {[%emt 0:00:24]} 59. Ke2 {[%emt 0:00:33]} Kd6 {[%emt 0:01:43]} 60. Rf5 {[%emt 0:00:36]} Kc6 {[%emt 0:01:01]} 61. Rd5 {[%emt 0:00:44]} Ra3 {[%emt 0:00:29]} 62. Rxd4 Rxa4 {[%emt 0:00:44]} 63. Kd3 {[%emt 0:00:51]} Ra3+ {[%emt 0:00:05]} 64. Kc2 {[%emt 0:00:22]} Kc5 {[%emt 0:00:09]} 65. Rh4 {[%emt 0:00:31]} Rg3 {[%emt 0:01:22]} 66. Kb2 {[%emt 0:00:29]} Rd3 {[%emt 0:00:21]} 67. Kc2 {[%emt 0:00:47]} Rd4 {[%emt 0:00:08]} 68. Rh8 {[%emt 0:00:31]} Kxc4 {[%emt 0:00:20]} 69. Rb8 {[%emt 0:00:24]} b5 {[%emt 0:00:07]} 70. Kb2 {[%emt 0:00:31]} Kb4 {[%emt 0:00:05]} 71. Kc2 {[%emt 0:00:35]} Rh4 {[%emt 0:00:06]} 72. Rg8 {[%emt 0:00:22]} a4 {[%emt 0:00:22]} 73. Rg3 {[%emt 0:00:19]} Rh2+ {[%emt 0:00:17]} 74. Kb1 {[%emt 0:00:15]} Rh4 {[%emt 0:00:59]} 75. Ka2 {[%emt 0:00:30]} Rd4 {[%emt 0:00:21]} 76. Rg2 {[%emt 0:00:38]} a3 {[%emt 0:00:33]} 77. Rg3 {[%emt 0:00:55]} Rd2+ {[%emt 0:00:07]} 78. Ka1 {[%emt 0:00:30]} Ka4 {[%emt 0:00:15]} 79. Rg4+ {[%emt 0:00:31]} b4 {[%emt 0:00:17]} 80. Rf4 {[%emt 0:00:24]} Rc2 {[%emt 0:00:34]} 81. Re4 {[%emt 0:00:36]} Kb3 {[%emt 0:00:11]} 82. Re3+ {[%emt 0:00:20]} Rc3 {[%emt 0:00:09]} 83. Re1 {[%emt 0:00:09]} Rh3 {[%emt 0:01:11]} 84. Rb1+ {[%emt 0:00:14]} Kc4 {[%emt 0:00:09]} 85. Ka2 {[%emt 0:01:16]} Rh2+ {[%emt 0:00:25]} 86. Ka1 {[%emt 0:00:01]} b3 {[%emt 0:00:32]} 87. Rc1+ {[%emt 0:00:13]} Kd3 {[%emt 0:01:01]} 88. Rd1+ {[%emt 0:00:54]} Rd2 {[%emt 0:00:23]} 89. Rh1 {[%emt 0:00:35]} Re2 {[%emt 0:01:45]} 90. Rd1+ {[%emt 0:00:43]} Kc3 {[%emt 0:02:24]} 91. Rc1+ {[%emt 0:00:35]} Rc2 {[%emt 0:00:20]} 92. Rh1 {[%emt 0:00:27]} Kb4 {[%emt 0:01:05]} 93. Rh4+ {[%emt 0:00:13]} Rc4 {[%emt 0:00:07]} 94. Rh1 {[%emt 0:00:12]} a2 {[%emt 0:00:36]} 95. Kb2 {[%emt 0:01:08]} Rc2+ {[%emt 0:00:18]} 96. Ka1 {[%emt 0:00:29]} Ka3 {[%emt 0:00:18]} 97. Rh3 {[%emt 0:00:33]} Rc1# 0-1

[Event "ESP-ch U2000 2024"]
[Site "Albacete"]
[Date "2024.08.30"]
[Round "6.6"]
[White "Galindo Montoya, Diego"]
[Black "Perez Gonzalez, Daniel"]
[Result "0-1"]
[ECO "A13"]
[WhiteElo "1878"]
[BlackElo "1981"]
[Annotator "RC"]
[PlyCount "42"]
[EventDate "2024.08.27"]
[EventType "swiss"]
[EventCountry "ESP"]
[SourceTitle "playchess.com"]
[Source "ChessBase"]
[SourceQuality "1"]
[TimeControl "5400+30"]

1. c4 {[%emt 0:00:00]} e6 {[%emt 0:00:00]} 2. Nc3 {[%emt 0:00:00]} d5 {[%emt 0:00:00]} 3. e3 {[%emt 0:00:16]} Nf6 {[%emt 0:00:15]} 4. Nf3 {[%emt 0:00:27]} c6 {[%emt 0:01:23]} 5. b3 {[%emt 0:00:44]} Bd6 {[%emt 0:00:48]} 6. g3 {[%emt 0:01:55]} O-O {[%emt 0:04:26]} 7. d4 {[%emt 0:05:20]} Nbd7 {[%emt 0:00:25]} 8. Bg2 {[%emt 0:05:18]} b5 {[%emt 0:09:03]} 9. c5 {[%emt 0:13:43]} Bc7 {[%emt 0:00:13]} 10. a3 {[%emt 0:04:55]} e5 {[%emt 0:02:33]} 11. dxe5 {[%emt 0:10:20]} Nxe5 {[%emt 0:03:32]} 12. Ne2 {[%emt 0:10:33]} Bh3 {[%emt 0:08:34]} 13. Nf4 {[%emt 0:05:46]} Bxg2 {[%emt 0:01:36]} 14. Nxg2 {[%emt 0:00:10]} Ne4 {[%emt 0:00:43]} 15. Bb2 {[%emt 0:04:08]} Qf6 {[%emt 0:02:28]} 16. Bxe5 {[%emt 0:03:42]} Bxe5 {[%emt 0:00:11]} 17. Rc1 {[%emt 0:01:49]} Nc3 {[%emt 0:02:39]} 18. Rxc3 {[%emt 0:01:01]} Bxc3+ {[%emt 0:00:05]} 19. Kf1 {[%emt 0:03:24]} Rad8 {[%emt 0:01:00]} 20. Nd4 {[%emt 0:00:44]} Bxd4 {[%emt 0:00:10]} 21. exd4 {[%emt 0:03:30]} Rfe8 {[%emt 0:00:08]} 0-1